fUSD/lending_fUSD_20250110
["ID","MTS","AMOUNT","RATE_DAILY","PERIOD"]
[348419768,1736524237953,-792.94,8.736e-05,2]
[348419770,1736524237963,-675.43,8.737e-05,2]
[348419772,1736524237972,-714.54,8.737e-05,2]
[348419774,1736524237981,-500.0,8.737e-05,2]
[348419776,1736524237992,-3297.03,8.737e-05,2]
[348419778,1736524238002,-500.0,8.737e-05,2]
[348419780,1736524238012,-971.52,8.737e-05,2]
[348419782,1736524238021,-764.62,8.737e-05,2]
[348419783,1736524238030,-764.62,8.737e-05,2]
[348419785,1736524238039,-500.0,8.737e-05,2]
[348419787,1736524238048,-518.7491291,8.737e-05,2]
[348419789,1736524238060,-500.0,8.737e-05,2]
[348419791,1736524238073,-621.27,8.737e-05,2]
[348419793,1736524238084,-500.0,8.737e-05,2]
[348419795,1736524238094,-500.0,8.737e-05,2]
[348419797,1736524238109,-500.0,8.737e-05,2]
[348419799,1736524238119,-500.0,8.737e-05,2]
[348419801,1736524238129,-500.0,8.737e-05,2]
[348419804,1736524238139,-500.0,8.737e-05,2]
[348419807,1736524238148,-500.0,8.737e-05,2]
[348419810,1736524238157,-500.0,8.737e-05,2]
[348419812,1736524238167,-500.0,8.737e-05,2]
[348419815,1736524238176,-500.0,8.737e-05,2]
[348419817,1736524238186,-626.0965722,8.737e-05,2]
[348419819,1736524238195,-500.0,8.737e-05,2]
[348419821,1736524238204,-500.0,8.737e-05,2]
[348419823,1736524238213,-506.19332457,8.737e-05,2]
[348419825,1736524238223,-500.0,8.737e-05,2]
[348419826,1736524238233,-500.0,8.737e-05,2]
[348419828,1736524238243,-500.0,8.737e-05,2]
[348419830,1736524238252,-500.0,8.737e-05,2]
[348419832,1736524238261,-500.0,8.737e-05,2]
[348419834,1736524238271,-535.32,8.737e-05,2]
[348419836,1736524238280,-1434.01,8.737e-05,2]
[348419838,1736524238290,-500.0,8.737e-05,2]
[348419840,1736524238299,-500.0,8.737e-05,2]
[348419842,1736524238308,-500.0,8.737e-05,2]
[348419844,1736524238318,-500.0,8.737e-05,2]
[348419846,1736524238328,-500.0,8.737e-05,2]
[348419848,1736524238337,-500.0,8.737e-05,2]
[348419850,1736524238346,-500.0,8.737e-05,2]
[348419852,1736524238355,-500.0,8.737e-05,2]
[348419854,1736524238368,-635.49,8.737e-05,2]
[348419856,1736524238378,-1010.79,8.737e-05,2]
[348419858,1736524238387,-500.0,8.737e-05,2]
[348419860,1736524238396,-500.0,8.737e-05,2]
[348419862,1736524238405,-500.0,8.737e-05,2]
[348419864,1736524238414,-500.0,8.737e-05,2]
[348419893,1736524238692,-500.0,8.737e-05,2]
[348419895,1736524238702,-1419.64,8.737e-05,2]
[348419897,1736524238712,-500.0,8.737e-05,2]
[348419899,1736524238721,-500.0,8.737e-05,2]
[348419901,1736524238730,-500.0,8.737e-05,2]
[348419903,1736524238739,-500.0,8.737e-05,2]
[348419904,1736524238749,-500.0,8.737e-05,2]
[348419906,1736524238757,-500.0,8.737e-05,2]
[348419908,1736524238767,-508.81106253,8.737e-05,2]
[348419910,1736524238776,-609.13,8.737e-05,2]
[348419912,1736524238785,-190.12798754,8.737e-05,2]
[348419914,1736524238794,-1774.64,8.737e-05,2]
[348419916,1736524238803,-500.0,8.737e-05,2]
[348419918,1736524238812,-1039.15,8.737e-05,2]
[348419920,1736524238822,-500.0,8.737e-05,2]
[348419922,1736524238831,-250.56090493,8.737e-05,2]
[348419924,1736524238840,-528.76,8.737e-05,2]
[348419926,1736524238850,-500.0,8.737e-05,2]
[348419928,1736524238861,-994.56,8.737e-05,2]
[348419930,1736524238871,-593.02,8.737e-05,2]
[348419932,1736524238880,-1240.07,8.737e-05,2]
[348419934,1736524238890,-814.5,8.737e-05,2]
[348419935,1736524238899,-500.0,8.737e-05,2]
[348419937,1736524238909,-500.0,8.737e-05,2]
[348419939,1736524238920,-868.17,8.737e-05,2]
[348419941,1736524238929,-953.37,8.737e-05,2]
[348419943,1736524238939,-500.0,8.737e-05,2]
[348419944,1736524238947,-500.0,8.737e-05,2]
[348419945,1736524238956,-500.0,8.737e-05,2]
[348419946,1736524238967,-500.0,8.737e-05,2]
[348419947,1736524238976,-500.0,8.737e-05,2]
[348419948,1736524238986,-500.0,8.737e-05,2]
[348419949,1736524238995,-500.0,8.737e-05,2]
[348419950,1736524239005,-500.0,8.737e-05,2]
[348419952,1736524239015,-500.0,8.737e-05,2]
[348419954,1736524239025,-789.01,8.737e-05,2]
[348419956,1736524239037,-500.0,8.737e-05,2]
[348419958,1736524239048,-1265.34,8.737e-05,2]
[348419960,1736524239057,-500.0,8.737e-05,2]
[348419962,1736524239067,-500.0,8.737e-05,2]
[348419964,1736524239076,-500.0,8.737e-05,2]
[348419965,1736524239086,-500.0,8.737e-05,2]
[348419968,1736524239096,-500.0,8.737e-05,2]
[348419970,1736524239105,-3093.1,8.737e-05,2]
[348419972,1736524239117,-500.0,8.737e-05,2]
[348419974,1736524239127,-864.42,8.737e-05,2]
[348419976,1736524239136,-530.14,8.737e-05,2]
[348419978,1736524239146,-500.0,8.737e-05,2]
[348419979,1736524239156,-500.0,8.737e-05,2]
[348419981,1736524239165,-1766.75,8.737e-05,2]
[348419983,1736524239176,-1402.75,8.737e-05,2]
[348419985,1736524239189,-500.0,8.737e-05,2]
[348419987,1736524239199,-241.7,8.737e-05,2]
[348419989,1736524239209,-240.35,8.737e-05,2]
[348419991,1736524239219,-500.0,8.737e-05,2]
[348419993,1736524239229,-500.0,8.737e-05,2]
[348419995,1736524239239,-555.91,8.737e-05,2]
[348419997,1736524239250,-500.0,8.737e-05,2]
[348419999,1736524239259,-652.78,8.737e-05,2]
[348420001,1736524239269,-500.0,8.737e-05,2]
[348420003,1736524239279,-500.0,8.737e-05,2]
[348420005,1736524239289,-506.60971381,8.737e-05,2]
[348420007,1736524239299,-608.24,8.737e-05,2]
[348420010,1736524239308,-500.0,8.737e-05,2]
[348420012,1736524239318,-4401.25,8.737e-05,2]
[348420014,1736524239328,-500.0,8.737e-05,2]
[348420016,1736524239338,-500.0,8.737e-05,2]
[348420019,1736524239347,-500.0,8.737e-05,2]
[348420021,1736524239359,-500.0,8.737e-05,2]
[348420023,1736524239369,-500.0,8.737e-05,7]
[348420025,1736524239379,-500.0,8.737e-05,2]
[348420027,1736524239389,-500.0,8.737e-05,2]
[348420029,1736524239399,-880.99,8.737e-05,2]
[348420031,1736524239408,-500.0,8.737e-05,2]
[348420033,1736524239418,-4953.9,8.737e-05,2]
[348420035,1736524239427,-500.0,8.737e-05,2]
[348420037,1736524239436,-500.0,8.737e-05,2]
[348420039,1736524239446,-500.0,8.737e-05,2]
[348420040,1736524239455,-1040.05,8.737e-05,2]
[348420042,1736524239465,-500.0,8.737e-05,2]
[348420044,1736524239474,-500.0,8.737e-05,2]
[348420046,1736524239484,-500.0,8.737e-05,2]
[348420049,1736524239494,-500.0,8.737e-05,2]
[348420051,1736524239504,-500.0,8.737e-05,2]
[348420052,1736524239515,-500.0,8.737e-05,2]
[348420053,1736524239525,-728.84,8.737e-05,2]
[348420054,1736524239535,-787.78,8.737e-05,2]
[348420055,1736524239544,-901.88,8.737e-05,2]
[348420056,1736524239554,-500.0,8.737e-05,2]
[348420057,1736524239563,-895.76,8.737e-05,2]
[348420058,1736524239574,-500.0,8.737e-05,2]
[348420059,1736524239584,-500.0,8.737e-05,2]
[348420060,1736524239594,-500.0,8.737e-05,2]
[348420061,1736524239605,-500.0,8.737e-05,2]
[348420062,1736524239619,-677.22,8.737e-05,2]
[348420063,1736524239628,-500.0,8.737e-05,2]
[348420064,1736524239637,-500.0,8.737e-05,2]
[348420065,1736524239647,-500.0,8.737e-05,2]
[348420066,1736524239656,-2539.7,8.737e-05,2]
[348420067,1736524239665,-500.0,8.737e-05,2]
[348420068,1736524239675,-812.91,8.737e-05,2]
[348420069,1736524239685,-500.0,8.737e-05,2]
[348420070,1736524239695,-500.0,8.737e-05,2]
[348420071,1736524239704,-500.0,8.737e-05,2]
[348420072,1736524239713,-500.0,8.737e-05,2]
[348420073,1736524239722,-500.0,8.737e-05,2]
[348420074,1736524239732,-500.0,8.737e-05,2]
[348420075,1736524239743,-500.0,8.737e-05,2]
[348420076,1736524239752,-500.0,8.737e-05,2]
[348420077,1736524239763,-500.0,8.737e-05,2]
[348420078,1736524239772,-626.16,8.737e-05,2]
[348420079,1736524239782,-500.0,8.737e-05,2]
[348420080,1736524239792,-500.0,8.737e-05,2]
[348420081,1736524239802,-500.0,8.737e-05,2]
[348420082,1736524239811,-502.34283552,8.737e-05,2]
[348420083,1736524239821,-500.0,8.737e-05,2]
[348420084,1736524239830,-500.0,8.737e-05,2]
[348420085,1736524239840,-500.0,8.737e-05,2]
[348420086,1736524239850,-500.0,8.737e-05,2]
[348420087,1736524239860,-500.0,8.737e-05,2]
[348420088,1736524239871,-500.0,8.737e-05,2]
[348420089,1736524239880,-500.0,8.737e-05,2]
[348420090,1736524239890,-544.97,8.737e-05,2]
[348420091,1736524239906,-500.0,8.737e-05,2]
[348420092,1736524239919,-500.0,8.737e-05,2]
[348420093,1736524239929,-500.0,8.737e-05,2]
[348420094,1736524239939,-5186.84,8.737e-05,2]
[348420095,1736524239950,-500.0,8.737e-05,2]
[348420096,1736524239959,-707.45,8.737e-05,2]
[348420097,1736524239969,-502.8200631,8.737e-05,2]
[348420098,1736524239979,-500.0,8.737e-05,2]
[348420099,1736524239988,-500.0,8.737e-05,2]
[348420100,1736524239999,-500.0,8.737e-05,2]
[348420101,1736524240009,-500.0,8.737e-05,2]
[348420103,1736524240019,-686.88,8.737e-05,2]
[348420105,1736524240029,-500.0,8.737e-05,2]
[348420106,1736524240038,-500.0,8.737e-05,2]
[348420107,1736524240048,-500.0,8.737e-05,2]
[348420108,1736524240057,-500.0,8.737e-05,2]
[348420109,1736524240067,-500.0,8.737e-05,2]
[348420110,1736524240076,-500.0,8.737e-05,2]
[348420111,1736524240086,-500.0,8.737e-05,2]
[348420112,1736524240096,-500.0,8.737e-05,2]
[348420113,1736524240105,-500.0,8.737e-05,2]
[348420114,1736524240117,-657.79,8.737e-05,2]
[348420115,1736524240127,-500.0,8.737e-05,2]
[348420116,1736524240136,-500.0,8.737e-05,2]
[348420117,1736524240146,-500.0,8.737e-05,2]
[348420118,1736524240155,-500.0,8.737e-05,2]
[348420119,1736524240166,-500.0,8.737e-05,2]
[348420120,1736524240176,-500.0,8.737e-05,2]
[348420121,1736524240186,-500.0,8.737e-05,2]
[348420122,1736524240196,-500.0,8.737e-05,2]
[348420123,1736524240207,-500.0,8.737e-05,2]
[348420124,1736524240217,-500.0,8.737e-05,2]
[348420125,1736524240228,-500.0,8.737e-05,2]
[348420126,1736524240238,-500.0,8.737e-05,2]
[348420127,1736524240247,-856.71,8.737e-05,2]
[348420128,1736524240257,-500.0,8.737e-05,2]
[348420129,1736524240267,-500.0,8.737e-05,2]
[348420130,1736524240277,-500.0,8.737e-05,2]
[348420132,1736524240286,-500.0,8.737e-05,2]
[348420133,1736524240296,-500.0,8.737e-05,2]
[348420135,1736524240306,-783.7,8.737e-05,2]
[348420136,1736524240316,-500.0,8.737e-05,2]
[348420137,1736524240325,-500.0,8.737e-05,2]
[348420138,1736524240336,-500.0,8.737e-05,2]
[348420139,1736524240345,-794.78,8.737e-05,2]
[348420140,1736524240355,-500.0,8.737e-05,2]
[348420141,1736524240368,-500.0,8.737e-05,2]
[348420142,1736524240377,-1062.86,8.737e-05,2]
[348420143,1736524240387,-503.17696434,8.737e-05,2]
[348420144,1736524240397,-500.0,8.737e-05,2]
[348420145,1736524240407,-500.0,8.737e-05,2]
[348420146,1736524240417,-500.0,8.737e-05,2]
[348420147,1736524240427,-500.0,8.737e-05,2]
[348420148,1736524240437,-500.0,8.737e-05,2]
[348420149,1736524240446,-500.0,8.737e-05,2]
[348420150,1736524240455,-500.0,8.737e-05,2]
[348420151,1736524240465,-500.0,8.737e-05,2]
[348420152,1736524240475,-500.0,8.737e-05,2]
[348420153,1736524240485,-500.0,8.737e-05,2]
[348420154,1736524240494,-500.0,8.737e-05,2]
[348420155,1736524240505,-500.0,8.737e-05,2]
[348420156,1736524240514,-500.0,8.737e-05,2]
[348420157,1736524240523,-500.0,8.737e-05,2]
[348420158,1736524240533,-501.5979049,8.737e-05,2]
[348420159,1736524240542,-500.0,8.737e-05,2]
[348420160,1736524240552,-500.0,8.737e-05,2]
[348420161,1736524240561,-3899.76,8.737e-05,2]
[348420162,1736524240571,-500.0,8.737e-05,2]
[348420163,1736524240581,-501.24061431,8.737e-05,2]
[348420164,1736524240591,-500.0,8.737e-05,2]
[348420165,1736524240601,-500.0,8.737e-05,2]
[348420166,1736524240612,-500.0,8.737e-05,2]
[348420167,1736524240623,-500.0,8.737e-05,2]
[348420168,1736524240632,-500.0,8.737e-05,2]
[348420169,1736524240642,-634.52,8.737e-05,2]
[348420170,1736524240651,-500.0,8.737e-05,2]
[348420171,1736524240662,-500.0,8.737e-05,2]
[348420172,1736524240672,-500.0,8.737e-05,2]
[348420173,1736524240688,-500.0,8.737e-05,2]
[348420174,1736524240705,-500.0,8.737e-05,2]
[348420175,1736524240721,-500.0,8.737e-05,2]
[348420176,1736524240733,-500.0,8.737e-05,2]
[348420177,1736524240746,-1022.03,8.737e-05,2]
[348420178,1736524240762,-500.0,8.737e-05,2]
[348420179,1736524240778,-939.3,8.737e-05,2]
[348420180,1736524240793,-500.0,8.737e-05,2]
[348420181,1736524240808,-500.0,8.737e-05,2]
[348420182,1736524240822,-691.24,8.737e-05,2]
[348420183,1736524240835,-500.0,8.737e-05,2]
[348420184,1736524240849,-627.35291952,8.737e-05,2]
[348420185,1736524240864,-4054.05,8.737e-05,2]
[348420186,1736524240877,-500.0,8.737e-05,2]
[348420187,1736524240892,-813.45,8.737e-05,2]
[348420188,1736524240908,-500.0,8.737e-05,2]
[348420189,1736524240925,-500.0,8.737e-05,2]
[348420190,1736524240941,-500.0,8.737e-05,2]
[348420191,1736524240956,-500.0,8.737e-05,2]
[348420192,1736524240971,-500.0,8.737e-05,2]
[348420193,1736524240986,-500.0,8.737e-05,2]
[348420194,1736524241002,-315.96533802,8.737e-05,2]
[348420195,1736524241017,-500.0,8.737e-05,2]
[348420196,1736524241032,-500.0,8.737e-05,2]
[348420197,1736524241046,-272.80213615,8.737e-05,2]
[348420198,1736524241059,-500.0,8.737e-05,2]
[348420199,1736524241074,-500.0,8.737e-05,2]
[348420200,1736524241089,-315.88579148,8.737e-05,2]
[348420201,1736524241102,-1362.38,8.737e-05,2]
[348420202,1736524241119,-500.0,8.737e-05,2]
[348420203,1736524241132,-500.0,8.737e-05,2]
[348420204,1736524241143,-500.0,8.737e-05,2]
[348420205,1736524241155,-315.06386984,8.737e-05,2]
[348420206,1736524241167,-500.0,8.737e-05,2]
[348420207,1736524241184,-500.0,8.737e-05,2]
[348420208,1736524241195,-207.47079704,8.737e-05,2]
[348420209,1736524241206,-500.0,8.737e-05,2]
[348420210,1736524241217,-1051.14,8.737e-05,2]
[348420211,1736524241233,-315.76837952,8.737e-05,2]
[348420212,1736524241249,-500.0,8.737e-05,2]
[348420213,1736524241264,-500.0,8.737e-05,2]
[348420214,1736524241277,-500.0,8.737e-05,2]
[348420215,1736524241288,-500.0,8.737e-05,2]
[348420216,1736524241299,-500.72400807,8.737e-05,2]
[348420217,1736524241312,-500.0,8.737e-05,2]
[348420218,1736524241324,-500.84316725,8.737e-05,2]
[348420219,1736524241337,-150.0,8.737e-05,2]
[348420220,1736524241349,-561.76338717,8.737e-05,2]
[348420221,1736524241365,-500.0,8.737e-05,2]
[348420222,1736524241377,-500.0,8.737e-05,2]
[348420223,1736524241390,-500.0,8.737e-05,2]
[348420224,1736524241402,-500.0,8.737e-05,2]
[348420225,1736524241415,-1335.65,8.737e-05,2]
[348420226,1736524241428,-500.0,8.737e-05,2]
[348420227,1736524241445,-500.0,8.737e-05,2]
[348420228,1736524241458,-500.0,8.737e-05,2]
[348420229,1736524241470,-941.46,8.737e-05,2]
[348420230,1736524241483,-501.43254005,8.737e-05,2]
[348420231,1736524241495,-500.0,8.737e-05,2]
[348420232,1736524241509,-1314.49,8.737e-05,2]
[348420233,1736524241521,-500.0,8.737e-05,2]
[348420234,1736524241534,-450.68893015,8.737e-05,2]
[348420235,1736524241547,-500.0,8.737e-05,2]
[348420236,1736524241560,-500.0,8.737e-05,2]
[348420237,1736524241572,-500.0,8.737e-05,2]
[348420238,1736524241585,-500.0,8.737e-05,2]
[348420239,1736524241598,-500.0,8.737e-05,2]
[348420240,1736524241611,-500.0,8.737e-05,2]
[348420241,1736524241623,-500.0,8.737e-05,2]
[348420242,1736524241635,-500.0,8.737e-05,2]
[348420243,1736524241647,-500.0,8.737e-05,2]
[348420244,1736524241660,-500.0,8.737e-05,2]
[348420245,1736524241672,-500.0,8.737e-05,2]
[348420246,1736524241685,-500.66514229,8.737e-05,2]
[348420247,1736524241697,-2098.32,8.737e-05,2]
[348420248,1736524241710,-314.41910211,8.737e-05,2]
[348420249,1736524241722,-1156.61,8.737e-05,2]
[348420250,1736524241734,-500.0,8.737e-05,2]
[348420251,1736524241747,-500.0,8.737e-05,2]
[348420252,1736524241758,-659.09,8.737e-05,2]
[348420253,1736524241771,-500.0,8.737e-05,2]
[348420254,1736524241783,-1381.15,8.737e-05,2]
[348420255,1736524241797,-500.0,8.737e-05,2]
[348420256,1736524241810,-500.0,8.737e-05,2]
[348420257,1736524241823,-500.0,8.737e-05,2]
[348420258,1736524241836,-500.0,8.737e-05,2]
[348420259,1736524241848,-500.0,8.737e-05,2]
[348420260,1736524241865,-500.0,8.737e-05,2]
[348420261,1736524241878,-500.0,8.737e-05,2]
[348420262,1736524241892,-1912.15,8.737e-05,2]
[348420263,1736524241905,-511.82,8.737e-05,2]
[348420264,1736524241922,-951.49,8.737e-05,2]
[348420265,1736524241936,-622.11,8.737e-05,2]
[348420266,1736524241948,-500.0,8.737e-05,2]
[348420267,1736524241962,-500.0,8.737e-05,2]
[348420268,1736524241975,-503.86448063,8.738e-05,2]
[348420269,1736524241989,-500.91049735,8.738e-05,2]
[348420270,1736524242003,-500.0,8.738e-05,2]
[348420271,1736524242016,-386.95459117,8.738e-05,2]
[348420272,1736524242030,-500.0,8.738e-05,2]
[348420273,1736524242043,-500.0,8.738e-05,2]
[348420274,1736524242057,-500.0,8.738e-05,2]
[348420275,1736524242070,-500.23617734,8.738e-05,2]
[348420276,1736524242084,-300.0,8.738e-05,2]
[348420277,1736524242096,-500.0,8.738e-05,2]
[348420278,1736524242112,-500.0,8.738e-05,2]
[348420279,1736524242125,-302.41714979,8.738e-05,2]
[348420280,1736524242137,-501.37005643,8.738e-05,2]
[348420281,1736524242150,-503.83550883,8.738e-05,2]
[348420282,1736524242163,-500.0,8.738e-05,2]
[348420283,1736524242177,-500.0,8.738e-05,2]
[348420284,1736524242189,-500.0,8.738e-05,2]
[348420285,1736524242202,-500.87411358,8.738e-05,2]
[348420286,1736524242216,-500.0,8.738e-05,2]
[348420287,1736524242230,-500.30131628,8.738e-05,2]
[348420288,1736524242244,-500.0,8.738e-05,2]
[348420289,1736524242257,-500.0,8.738e-05,2]
[348420290,1736524242269,-338.15012263,8.738e-05,2]
[348420291,1736524242282,-500.65651366,8.738e-05,2]
[348420292,1736524242294,-643.34439269,8.738e-05,2]
[348420293,1736524242308,-500.99193114,8.738e-05,2]
[348420294,1736524242320,-500.0,8.738e-05,2]
[348420295,1736524242333,-501.3695328,8.738e-05,2]
[348420296,1736524242345,-500.0,8.738e-05,2]
[348420297,1736524242360,-500.0,8.738e-05,2]
[348420299,1736524242373,-500.0,8.738e-05,2]
[348420301,1736524242386,-349.73293714,8.738e-05,2]
[348420303,1736524242399,-500.0,8.738e-05,2]
[348420306,1736524242412,-500.49418149,8.738e-05,2]
[348420308,1736524242425,-365.20489989,8.738e-05,2]
[348420309,1736524242438,-500.0,8.738e-05,2]
[348420310,1736524242452,-500.0,8.738e-05,2]
[348420311,1736524242465,-1000.0,8.738e-05,2]
[348420312,1736524242479,-500.43829197,8.738e-05,2]
[348420314,1736524242492,-500.0,8.738e-05,2]
[348420316,1736524242506,-500.0,8.738e-05,2]
[348420318,1736524242519,-500.0,8.738e-05,2]
[348420320,1736524242532,-500.0,8.738e-05,2]
[348420322,1736524242546,-500.0,8.738e-05,2]
[348420325,1736524242559,-500.0,8.738e-05,2]
[348420326,1736524242572,-500.0,8.738e-05,2]
[348420327,1736524242586,-952.88,8.738e-05,2]
[348420328,1736524242600,-500.0,8.738e-05,2]
[348420329,1736524242618,-500.0,8.738e-05,2]
[348420330,1736524242633,-705.22,8.738e-05,2]
[348420331,1736524242646,-974.31,8.738e-05,2]
[348420332,1736524242659,-500.0,8.738e-05,2]
[348420333,1736524242672,-1038.13,8.738e-05,2]
[348420334,1736524242684,-500.0,8.738e-05,2]
[348420335,1736524242697,-579.82,8.738e-05,2]
[348420336,1736524242709,-1012.33,8.738e-05,2]
[348420337,1736524242722,-648.63,8.738e-05,2]
[348420338,1736524242734,-500.0,8.738e-05,2]
[348420339,1736524242747,-571.87,8.738e-05,2]
[348420340,1736524242762,-500.0,8.738e-05,2]
[348420341,1736524242775,-1172.84,8.738e-05,2]
[348420342,1736524242787,-796.64,8.738e-05,2]
[348420343,1736524242800,-974.54,8.738e-05,2]
[348420344,1736524242812,-500.0,8.738e-05,2]
[348420345,1736524242824,-1273.5,8.738e-05,2]
[348420346,1736524242837,-500.0,8.738e-05,2]
[348420347,1736524242850,-659.75,8.738e-05,2]
[348420348,1736524242868,-500.0,8.738e-05,2]
[348420350,1736524242880,-500.0,8.738e-05,2]
[348420351,1736524242893,-886.68,8.738e-05,2]
[348420352,1736524242906,-500.0,8.738e-05,2]
[348420353,1736524242923,-285.97440341,8.738e-05,2]
[348420354,1736524242936,-500.0,8.738e-05,2]
[348420355,1736524242949,-1963.72,8.738e-05,2]
[348420356,1736524242963,-500.0,8.738e-05,2]
[348420357,1736524242976,-6187.03,8.738e-05,2]
[348420358,1736524242993,-1822.9,8.738e-05,2]
[348420359,1736524243006,-2565.68,8.738e-05,2]
[348420360,1736524243020,-3150.34,8.738e-05,2]
[348420361,1736524243032,-4721.83,8.739e-05,2]
[348420362,1736524243045,-2272.62,8.739e-05,2]
[348420363,1736524243058,-1591.49,8.739e-05,2]
[348420364,1736524243070,-2329.78,8.739e-05,2]
[348420366,1736524243083,-1432.42,8.739e-05,2]
[348420368,1736524243095,-500.0,8.749e-05,2]
[348420369,1736524243109,-1975.6,8.75e-05,2]
[348420370,1736524243124,-500.0,8.777e-05,2]
[348420371,1736524243137,-1883.34,8.777e-05,2]
[348420372,1736524243150,-1704.97,8.777e-05,2]
[348420373,1736524243162,-772.13,8.777e-05,2]
[348420374,1736524243176,-500.0,8.777e-05,2]
[348420375,1736524243189,-4013.17,8.777e-05,2]
[348420376,1736524243202,-645.05514003,8.845e-05,2]
[348420377,1736524243216,-1747.53,8.851e-05,2]
[348420378,1736524243229,-500.0,8.851e-05,2]
[348420379,1736524243242,-1348.6,8.851e-05,2]
[348420380,1736524243254,-3203.72,8.851e-05,2]
[348420381,1736524243268,-1647.23,8.851e-05,2]
[348420382,1736524243278,-1103.85,8.851e-05,2]
[348420383,1736524243287,-1226.84,8.851e-05,2]
[348420384,1736524243298,-843.28,8.851e-05,2]
[348420385,1736524243307,-1796.31,8.851e-05,2]
[348420386,1736524243317,-1043.14,8.851e-05,2]
[348420387,1736524243684,-1316.27,8.851e-05,2]
[348420388,1736524243728,-1311.99,8.851e-05,2]
[348420389,1736524243746,-2157.87,8.851e-05,2]
[348420390,1736524243756,-2366.16,8.851e-05,2]
[348420391,1736524243767,-2149.91,8.851e-05,2]
[348420392,1736524243777,-169.37,8.9e-05,2]
[348420393,1736524243786,-8696.06,8.952e-05,2]
[348420394,1736524243796,-1684.62,8.952e-05,2]
[348420395,1736524243805,-1188.63,8.952e-05,2]
[348420396,1736524243815,-1197.62,8.952e-05,2]
[348420397,1736524243824,-2275.37,8.952e-05,2]
[348420398,1736524243834,-662.96,8.952e-05,2]
[348420399,1736524243845,-1191.38,8.952e-05,2]
[348420400,1736524243855,-794.97,8.992e-05,2]
[348420401,1736524243867,-500.0,9.009e-05,2]
[348420402,1736524243877,-500.0,9.009e-05,2]
[348420403,1736524243887,-500.0,9.009e-05,2]
[348420404,1736524243896,-500.0,9.009e-05,2]
[348420405,1736524243907,-500.0,9.009e-05,2]
[348420406,1736524243918,-500.0,9.009e-05,2]
[348420407,1736524243927,-500.0,9.009e-05,2]
[348420408,1736524243937,-1593.59,9.009e-05,2]
[348420409,1736524243947,-500.0,9.009e-05,2]
[348420410,1736524243957,-1043.52,9.009e-05,2]
[348420411,1736524243967,-633.07697136,9.009e-05,2]
[348420412,1736524243977,-500.0,9.009e-05,2]
[348420413,1736524243988,-500.0,9.009e-05,2]
[348420414,1736524243998,-876.27,9.009e-05,2]
[348420415,1736524244008,-500.0,9.009e-05,2]
[348420416,1736524244018,-286.13398965,9.009e-05,2]
[348420417,1736524244027,-2264.41,9.009e-05,2]
[348420418,1736524244037,-508.54313898,9.009e-05,2]
[348420419,1736524244047,-1584.14,9.009e-05,2]
[348420420,1736524244056,-500.0,9.009e-05,2]
[348420421,1736524244066,-500.0,9.009e-05,2]
[348420422,1736524244077,-500.0,9.009e-05,2]
[348420423,1736524244087,-1819.95,9.009e-05,2]
[348420424,1736524244096,-165.84349443,9.009e-05,2]
[348420425,1736524244105,-500.0,9.009e-05,2]
[348420426,1736524244118,-500.0,9.009e-05,2]
[348420427,1736524244128,-500.0,9.009e-05,2]
[348420428,1736524244137,-1002.74,9.009e-05,2]
[348420429,1736524244147,-500.0,9.009e-05,2]
[348420430,1736524244156,-518.06004282,9.009e-05,2]
[348420431,1736524244165,-3030.78,9.009e-05,2]
[348420432,1736524244176,-277.72737736,9.009e-05,2]
[348420433,1736524244186,-500.0,9.009e-05,2]
[348420434,1736524244196,-2135.04,9.009e-05,2]
[348420435,1736524244207,-500.0,9.009e-05,2]
[348420436,1736524244217,-1215.89,9.009e-05,2]
[348420437,1736524244228,-1582.69,9.009e-05,2]
[348420438,1736524244238,-500.0,9.009e-05,2]
[348420439,1736524244248,-3156.38,9.009e-05,2]